fUST/lending_fUST_20250319
["ID","MTS","AMOUNT","RATE_DAILY","PERIOD"]
[356389835,1742380009208,-150.00000001,0.000179,2]
[356389836,1742380009244,-27.10636202,0.00018,2]
[356389911,1742380232390,-312.89363798,0.00018,2]
[356389913,1742380232399,-600.0,0.00018164,2]
[356389915,1742380232409,-500.0,0.00018174,2]
[356389917,1742380232418,-256.03433404,0.00018174,2]
[356389919,1742380232427,-300.0,0.00018174,2]
[356389921,1742380232436,-1100.0,0.00018175,2]
[356389923,1742380232446,-1100.0,0.00018175,2]
[356389925,1742380232455,-1100.0,0.00018175,2]
[356389927,1742380232467,-1100.0,0.00018175,2]
[356389929,1742380232481,-1100.0,0.00018175,2]
[356389931,1742380232491,-1100.0,0.00018175,2]
[356389933,1742380232500,-1100.0,0.00018175,2]
[356389935,1742380232509,-1100.0,0.00018175,2]
[356389937,1742380232518,-500.0,0.00018175,2]
[356389939,1742380232527,-500.0,0.00018175,2]
[356389941,1742380232537,-1100.0,0.00018175,2]
[356389943,1742380232546,-500.0,0.00018175,2]
[356389945,1742380232556,-500.0,0.00018175,2]
[356389947,1742380232565,-1100.0,0.00018175,2]
[356389949,1742380232574,-500.0,0.00018175,2]
[356389951,1742380232583,-500.0,0.00018175,2]
[356389953,1742380232592,-1100.0,0.00018175,2]
[356389955,1742380232601,-500.0,0.00018175,2]
[356389957,1742380232610,-500.0,0.00018175,2]
[356389959,1742380232620,-1100.0,0.00018175,2]
[356389961,1742380232629,-500.0,0.00018175,2]
[356389963,1742380232638,-500.0,0.00018175,2]
[356389965,1742380232647,-503.87267729,0.00018175,2]
[356389967,1742380232656,-1900.0,0.00018175,2]
[356389969,1742380232665,-500.0,0.00018175,2]
[356389971,1742380232673,-500.0,0.00018175,2]
[356389973,1742380232682,-500.0,0.00018175,2]
[356389975,1742380232692,-500.0,0.00018175,2]
[356389977,1742380232701,-500.0,0.00018175,2]
[356389979,1742380232710,-500.0,0.00018175,2]
[356389981,1742380232721,-500.0,0.00018175,2]
[356389983,1742380232732,-500.0,0.00018175,2]
[356389985,1742380232742,-500.0,0.00018175,2]
[356389987,1742380232751,-500.0,0.00018175,2]
[356389989,1742380232760,-500.0,0.00018175,2]
[356389991,1742380232770,-184.209792,0.00018267,2]
[356389993,1742380232786,-184.209792,0.00018267,120]
[356389995,1742380232795,-24900.0,0.00018613,2]
[356389997,1742380232807,-2445.65833453,0.000189,2]
[356389999,1742380232817,-2445.65833453,0.00019866,2]
[356390002,1742380232827,-2477.83462892,0.00019873,2]
[356390004,1742380232837,-500.0,0.00019973,2]
[356390006,1742380232846,-500.0,0.00019973,2]
[356390008,1742380232855,-500.0,0.00019999,2]
[356390010,1742380232865,-193.77672088,0.00019999,2]
[356390012,1742380232874,-237.44758784,0.00019999,2]
[356390014,1742380232883,-30000.0,0.0002,4]
[356390016,1742380232893,-501.64342316,0.0002001,2]
[356390018,1742380232902,-329.063657,0.00020036,2]
[356390020,1742380232911,-170.0551893,0.00020059,2]
[356390022,1742380232920,-340.0837141,0.00020143,2]
[356390024,1742380232929,-160.01587571,0.00020143,2]
[356390026,1742380232938,-505.07319671,0.00020143,2]
[356390028,1742380232947,-500.0,0.00020143,2]
[356390030,1742380232956,-500.0,0.00020143,2]
[356390032,1742380232965,-505.57002045,0.00020143,2]
[356390034,1742380232974,-500.15530927,0.00020143,2]
[356390036,1742380232983,-500.0,0.00020143,2]
[356390038,1742380232993,-500.0,0.00020143,2]
[356390040,1742380233002,-500.0,0.00020143,2]
[356390041,1742380233011,-500.0,0.00020143,2]
[356390042,1742380233020,-500.0,0.00020143,2]
[356390043,1742380233031,-500.0,0.00020172,2]
[356390044,1742380233042,-2445.65833453,0.00020831,2]
[356390045,1742380233052,-3000.0,0.00021,2]
[356390046,1742380233063,-15000.0,0.00021,4]
[356390047,1742380233073,-3000.0,0.0002101,2]
[356390048,1742380233082,-159.12,0.0002101,2]
[356390049,1742380233092,-3000.0,0.0002102,2]
[356390050,1742380233102,-3000.0,0.0002103,2]
[356390051,1742380233112,-3000.0,0.0002104,2]
[356390052,1742380233123,-3000.0,0.0002105,2]
[356390053,1742380233133,-3000.0,0.0002106,2]
[356390054,1742380233143,-3000.0,0.0002107,2]
[356390055,1742380233154,-3000.0,0.0002108,2]
[356390056,1742380233164,-3000.0,0.0002109,2]
[356390057,1742380233175,-3000.0,0.000211,2]
[356390058,1742380233186,-3000.0,0.0002111,2]
[356390059,1742380233196,-3000.0,0.0002112,2]
[356390060,1742380233213,-3000.0,0.0002113,2]
[356390061,1742380233223,-3000.0,0.0002114,2]
[356390063,1742380233234,-3000.0,0.0002115,2]
[356390065,1742380233245,-3000.0,0.0002116,2]
[356390067,1742380233255,-3000.0,0.0002117,2]
[356390069,1742380233265,-3000.0,0.0002118,2]
[356390071,1742380233275,-2526.890861,0.0002118,2]
[356390073,1742380233285,-2526.890861,0.0002118,2]
[356390075,1742380233296,-156.554797,0.0002118,2]
[356390077,1742380233308,-176.486786,0.0002118,2]
[356390079,1742380233320,-176.486786,0.0002118,2]
[356390081,1742380233334,-151.0,0.0002118,2]
[356390083,1742380233347,-182.168679,0.0002118,2]
[356390085,1742380233359,-182.168679,0.0002118,2]
[356390087,1742380233375,-3000.0,0.0002119,2]
[356390090,1742380233388,-3000.0,0.000212,2]
[356390092,1742380233400,-3000.0,0.0002121,2]
[356390094,1742380233412,-500.0,0.0002121,2]
[356390096,1742380233423,-3000.0,0.0002122,2]
[356390098,1742380233437,-186.809,0.00021221,2]
[356390101,1742380233450,-3000.0,0.0002123,2]
[356390103,1742380233461,-3000.0,0.0002124,2]
[356390105,1742380233473,-3000.0,0.0002125,2]
[356390107,1742380233483,-3000.0,0.0002126,2]
[356390109,1742380233495,-3000.0,0.0002127,2]
[356390111,1742380233505,-3000.0,0.0002128,2]
[356390113,1742380233518,-3000.0,0.0002129,2]
[356390115,1742380233528,-3000.0,0.000213,2]
[356390117,1742380233537,-3000.0,0.0002131,2]
[356390119,1742380233548,-2526.890861,0.0002131,2]
[356390121,1742380233559,-2526.890861,0.0002131,2]
[356390123,1742380233570,-176.486786,0.0002131,2]
[356390125,1742380233581,-176.486786,0.0002131,2]
[356390127,1742380233591,-182.168679,0.0002131,2]
[356390129,1742380233601,-182.168679,0.0002131,2]
[356390131,1742380233611,-3000.0,0.0002132,2]
[356390133,1742380233622,-3131.572,0.00021322,2]
[356390135,1742380233632,-212.49651,0.00021322,2]
[356390137,1742380233643,-212.49651,0.00021322,2]
[356390139,1742380233655,-3000.0,0.0002133,2]
[356390141,1742380233666,-151.0,0.0002133,2]
[356390143,1742380233679,-3000.0,0.0002134,2]
[356390145,1742380233692,-151.0,0.0002134,2]
[356390147,1742380233703,-5292.953942,0.0002135,2]
[356390149,1742380233716,-2445.65833453,0.00021797,3]
[356390151,1742380233732,-310.364284,0.00021918,2]
[356390153,1742380233743,-310.364284,0.00021918,2]
[356390155,1742380233754,-1347.58,0.00022,7]
[356390157,1742380233763,-10000.0,0.00022,5]
[356390159,1742380233773,-152.0,0.00022,2]
[356390161,1742380233784,-2526.890861,0.00022,2]
[356390163,1742380233794,-2526.890861,0.00022,2]
[356390165,1742380233805,-2445.65833453,0.00022762,3]
[356390167,1742380233816,-250.0000001,0.00022878,2]
[356390169,1742380233825,-15090.4947529,0.00023,7]
[356390171,1742380233838,-833.92477148,0.00023,7]
[356390173,1742380233847,-176.486786,0.00023,7]
[356390175,1742380233858,-176.486786,0.00023,7]
[356390177,1742380233867,-182.168679,0.00023,7]
[356390179,1742380233878,-182.168679,0.00023,7]
[356390181,1742380233888,-152.0,0.00023014,2]
[356390183,1742380233898,-417.89091067,0.00023037,2]
[356390185,1742380233908,-833.92477148,0.00023059,2]
[356390187,1742380233918,-160.0,0.00023059,2]
[356390189,1742380233929,-261.203005,0.00023524,7]
[356390191,1742380233939,-430.334138,0.00023524,7]
[356390193,1742380233949,-430.334138,0.00023524,7]
[356390195,1742380233959,-151.0,0.00023524,7]
[356390196,1742380233969,-151.0,0.00023524,7]
[356390198,1742380233979,-310.364284,0.00023524,7]
[356390200,1742380233989,-310.364284,0.00023524,7]
[356390202,1742380234001,-500.0,0.00023573,2]
[356390204,1742380234011,-212.49651,0.00023573,7]
[356390206,1742380234020,-212.49651,0.00023573,7]
[356390208,1742380234030,-2526.890861,0.00023652,2]
[356390209,1742380234041,-2526.890861,0.00023652,2]
[356390210,1742380234051,-2445.65833453,0.00023728,3]
[356390211,1742380234061,-23888.12651001,0.00024,2]
[356390212,1742380234071,-430.334138,0.00024,7]
[356390213,1742380234081,-430.334138,0.00024,7]
[356390214,1742380234091,-151.0,0.00024,7]
[356390215,1742380234101,-151.0,0.00024,7]
[356390216,1742380234111,-310.364284,0.00024,7]
[356390217,1742380234121,-310.364284,0.00024,7]
[356390218,1742380234131,-212.49651,0.00024,7]
[356390219,1742380234141,-212.49651,0.00024,7]
[356390220,1742380234151,-176.486786,0.00024555,7]
[356390221,1742380234161,-176.486786,0.00024555,7]
[356390222,1742380234171,-182.168679,0.00024555,7]
[356390223,1742380234181,-182.168679,0.00024555,7]
[356390224,1742380234191,-500.0,0.0002457,2]
[356390225,1742380234201,-500.0,0.00024573,2]
[356390226,1742380234212,-151.0,0.00024599,2]
[356390227,1742380234222,-4645.3041951,0.000246,2]
[356390228,1742380234399,-500.0,0.000246,2]
[356390229,1742380234409,-500.0,0.000246,3]
[356390230,1742380234418,-417.89091067,0.000246,3]
[356390231,1742380234427,-184.244176,0.000246,2]
[356390232,1742380234437,-833.92477148,0.000246,3]
[356390233,1742380234446,-2526.890861,0.000246,2]
[356390234,1742380234455,-2526.890861,0.000246,2]
[356390235,1742380234465,-1000.0,0.000246,7]
[356390236,1742380234474,-1000.0,0.000246,7]
[356390237,1742380234484,-1000.0,0.000246,7]
[356390238,1742380234493,-1000.0,0.000246,7]
[356390239,1742380234503,-1000.0,0.000246,7]
[356390240,1742380234512,-1000.0,0.000246,7]
[356390241,1742380234521,-1000.0,0.000246,7]
[356390242,1742380234531,-1000.0,0.000246,7]
[356390243,1742380234541,-1000.0,0.000246,7]
[356390244,1742380234550,-1000.0,0.000246,7]
[356390245,1742380234560,-1000.0,0.000246,7]
[356390246,1742380234570,-1000.0,0.000246,7]
[356390247,1742380234580,-1000.0,0.000246,7]
[356390248,1742380234589,-1000.0,0.000246,7]
[356390249,1742380234599,-1000.0,0.000246,7]
[356390250,1742380234608,-1000.0,0.000246,7]
[356390251,1742380234617,-1000.0,0.000246,7]
[356390252,1742380234626,-1000.0,0.000246,7]
[356390253,1742380234636,-1000.0,0.000246,7]
[356390254,1742380234645,-1000.0,0.000246,7]
[356390255,1742380234655,-1000.0,0.000246,7]
[356390256,1742380234664,-1000.0,0.000246,7]
[356390257,1742380234673,-1000.0,0.000246,7]
[356390258,1742380234683,-1000.0,0.000246,7]
[356390259,1742380234693,-1000.0,0.000246,7]
[356390260,1742380234702,-1000.0,0.000246,7]
[356390261,1742380234712,-1000.0,0.000246,7]
[356390262,1742380234726,-1000.0,0.000246,7]
[356390263,1742380234736,-1000.0,0.000246,7]
[356390264,1742380234746,-1000.0,0.000246,7]
[356390265,1742380234755,-1000.0,0.000246,7]
[356390266,1742380234767,-1000.0,0.000246,7]
[356390267,1742380234777,-1000.0,0.000246,7]
[356390268,1742380234789,-194.38403255,0.000246,7]
[356390269,1742380234800,-972.0178614,0.00024658,4]
[356390270,1742380234811,-429.53165353,0.00024658,2]
[356390271,1742380234821,-640.79596606,0.00024693,3]
[356390272,1742380234836,-389.170668,0.00024693,3]
[356390273,1742380234874,-1415.69170047,0.00024693,3]
[356390274,1742380234883,-501.61839429,0.00024773,2]
[356390275,1742380234893,-505.77461869,0.00024773,2]
[356390276,1742380234902,-500.0,0.00024773,2]
[356390277,1742380234912,-500.0,0.00024773,2]
[356390278,1742380234921,-500.0,0.00024773,2]
[356390279,1742380234931,-500.0,0.00024773,2]
[356390280,1742380234940,-500.0,0.00024773,2]
[356390281,1742380234950,-433.52691349,0.00024773,2]
[356390282,1742380234959,-500.0,0.00024773,2]
[356390283,1742380234969,-500.0,0.00024773,2]
[356390284,1742380234978,-279.75278749,0.00024773,2]
[356390285,1742380234987,-500.0,0.00024773,2]
[356390286,1742380234997,-500.0,0.00024773,2]
[356390287,1742380235006,-422.24682356,0.00024773,2]
[356390319,1742380238433,-77.75317644,0.00024773,2]
[356390320,1742380238443,-594.36720335,0.00024773,2]
[356390321,1742380238454,-160.96846259,0.00024773,2]
[356390322,1742380238464,-500.0,0.00024773,2]
[356390323,1742380238474,-557.98122582,0.00024773,2]
[356390324,1742380238483,-500.0,0.00024773,2]
[356390325,1742380238493,-612.36634653,0.00024773,2]
[356390326,1742380238503,-500.0,0.00024773,2]
[356390327,1742380238513,-500.0,0.00024773,2]
[356390328,1742380238522,-500.0,0.00024773,2]
[356390329,1742380238532,-430.334138,0.000248,7]
[356390330,1742380238542,-430.334138,0.000248,7]
[356390331,1742380238552,-151.0,0.000248,7]
[356390332,1742380238561,-150.0,0.000248,5]
[356390333,1742380238570,-151.0,0.000248,7]
[356390334,1742380238580,-310.364284,0.000248,7]
[356390335,1742380238590,-310.364284,0.000248,7]
[356390336,1742380238599,-250.0,0.000248,30]
[356390337,1742380238608,-120328.16043,0.000248,2]
[356390338,1742380238618,-176.486786,0.000248,7]
[356390339,1742380238628,-176.486786,0.000248,7]
[356390340,1742380238639,-182.168679,0.000248,7]
[356390341,1742380238650,-182.168679,0.000248,7]
[356390342,1742380238660,-500.0,0.00024873,2]
[356390343,1742380238670,-500.0,0.00024873,2]
[356390344,1742380238679,-500.0,0.00024873,2]
[356390345,1742380238690,-324.82966276,0.00024873,2]
[356390346,1742380238700,-387.55056764,0.00024873,2]
[356390347,1742380238710,-500.0,0.00024873,2]
[356390348,1742380238720,-500.0,0.00024873,2]
[356390349,1742380238734,-500.0,0.00024873,2]
[356390350,1742380238744,-118711.5786864,0.0002489,2]
[356390351,1742380238756,-1859.93367084,0.0002489,2]
[356390353,1742380240549,-411.61161921,0.00023611,2]
[356390391,1742381349038,153.7165079,0.00015175,120]
[356390434,1742381432905,-833.92477148,0.00019878,2]
[356390435,1742381432915,-417.89091067,0.00019893,2]
[356390436,1742381432924,-160.0,0.00019909,2]
[356390437,1742381432934,-207.7711852,0.00021475,2]
[356390438,1742381432944,-622.26,0.00022,14]
[356390439,1742381432953,-2463.0,0.00022,5]
[356390440,1742381432965,-159.12,0.00022233,2]
[356390441,1742381432974,-454.17643927,0.000224,2]
[356390442,1742381432983,-500.0,0.000224,2]
[356390443,1742381432993,-500.0,0.0002255,2]
[356390444,1742381433002,-500.0,0.0002255,2]
[356390445,1742381433011,-500.0,0.0002255,2]
[356390446,1742381433020,-500.0,0.0002255,2]
[356390447,1742381433031,-500.0,0.0002255,2]
[356390448,1742381433040,-500.0,0.0002255,2]
[356390449,1742381433049,-500.0,0.0002255,2]
[356390450,1742381433059,-500.0,0.0002255,2]
[356390451,1742381433068,-1875.00472342,0.000229,3]
[356390452,1742381433081,-5060.39318342,0.00023208,2]
[356390453,1742381433093,-10793.27102644,0.00023208,2]
[356390468,1742381438372,-1952.0,0.00023208,2]
[356390469,1742381438397,-501.44951117,0.00023208,2]
[356390543,1742381443545,-4868.72904947,0.00023208,2]
[356390544,1742381443555,-1875.00472313,0.00023728,3]
[356390545,1742381443566,-2116.65384786,0.000238,2]
[356390546,1742381443576,-187.0634577,0.00024078,2]
[356390547,1742381443585,-187.0634577,0.00024078,2]
[356390548,1742381443595,-442.6473172,0.00024297,2]
[356390549,1742381443604,-187.0634577,0.00024297,2]
[356390550,1742381443614,-1875.00472313,0.00024555,3]
[356390551,1742381443623,-516.21331149,0.00024789,2]
[356390552,1742381443632,-222000.0,0.0002479,2]
[356390553,1742381443643,-3000.0,0.0002479,2]
[356390554,1742381443653,-500.0,0.000248,7]
[356390555,1742381443663,-501.0,0.000248,7]
[356390556,1742381443673,-150.0,0.000248,30]
[356390558,1742381443683,-32038.8390626,0.000248,2]
[356390559,1742381443693,-500.0,0.00024873,2]
[356390560,1742381443703,-500.0,0.00024873,2]
[356390561,1742381443714,-500.0,0.00024873,2]
[356390562,1742381443724,-500.0,0.00024873,2]
[356390563,1742381443734,-500.0,0.00024873,2]
[356390564,1742381443743,-500.0,0.00024873,2]
[356390565,1742381443752,-500.0,0.00024873,2]
[356390566,1742381443761,-500.0,0.00024873,2]
[356390567,1742381443770,-501.54349599,0.00024873,2]
[356390568,1742381443779,-500.0,0.00024873,2]
[356390569,1742381443789,-500.0,0.00024873,2]
[356390570,1742381443799,-500.0,0.00024873,2]
[356390571,1742381443808,-500.0,0.00024873,2]
[356390572,1742381443818,-500.0,0.00024873,2]
[356390573,1742381443828,-500.0,0.00024873,2]
[356390574,1742381443838,-500.0,0.00024873,2]
[356390575,1742381443848,-500.0,0.00024873,2]
[356390576,1742381443858,-500.0,0.00024873,2]
[356390577,1742381443869,-500.0,0.00024873,2]
[356390578,1742381443879,-165.27012964,0.00024873,2]
[356390579,1742381443888,-500.0,0.00024873,2]
[356390580,1742381443898,-500.0,0.00024873,2]
[356390581,1742381443908,-206.84569796,0.00024889,2]
[356390582,1742381443918,-1347.57,0.000249,7]
[356390583,1742381443928,-39.30174713,0.000249,2]
[356390589,1742381446588,-2545.23729948,0.000249,2]
[356390590,1742381446643,-22164.20147584,0.000249,2]
[356390595,1742381446699,-3227.91796584,0.000249,2]
[356390596,1742382006051,448.91710301,0.00015175,120]
[356390612,1742382629902,10000.0,0.0001517,120]
[356390685,1742382638538,-150.0,0.00021,2]
[356390686,1742382638549,-24900.0,0.00023693,2]
[356390687,1742382638558,-375.5445754,0.00023873,2]
[356390688,1742382638568,-417.89091067,0.00024472,2]
[356390690,1742382638578,-833.92477148,0.00024472,2]
[356390691,1742382638588,-1852.07211693,0.00024573,2]
[356390692,1742382638597,-11963.23476335,0.00024658,2]
[356390693,1742382638607,-500.0,0.00024673,2]
[356390694,1742382638617,-348.44069043,0.00024673,2]
[356390695,1742382638627,-158.53609349,0.00024673,2]
[356390696,1742382638637,-396.12944399,0.00024673,2]
[356390697,1742382638646,-500.0,0.00024673,2]
[356390698,1742382638657,-500.0,0.00024673,2]
[356390699,1742382638667,-500.0,0.00024673,2]
[356390700,1742382638677,-500.0,0.00024673,2]
[356390701,1742382638686,-500.0,0.00024673,2]
[356390702,1742382638697,-500.0,0.00024673,2]
[356390703,1742382638707,-215.72111222,0.00024673,2]
[356390704,1742382638718,-500.0,0.00024673,2]
[356390705,1742382638728,-361.34931804,0.00024689,2]
[356390706,1742382638739,-7058.39831141,0.0002469,2]
[356390707,1742382638752,-1668.32,0.0002469,2]
[356390708,1742382638765,-7863.5958345,0.0002469,2]
[356390766,1742382645994,10000.0,0.00012,30]
[356390768,1742382663150,7326.0,0.00012,30]
[356390773,1742383601223,-177.10636203,0.00023,5]
[356390841,1742383832021,-500.0,0.00022999,2]
[356390843,1742383832032,-500.0,0.00022999,2]
[356390845,1742383832048,-500.0,0.00022999,2]
[356390847,1742383832058,-500.0,0.00022999,2]
[356390849,1742383832069,-500.0,0.00022999,2]
[356390851,1742383832080,-500.0,0.00022999,2]
[356390853,1742383832091,-437.30842669,0.00022999,2]
[356390855,1742383832102,-500.0,0.00022999,2]
[356390857,1742383832110,-25790.44970097,0.00023,2]
[356390930,1742383837679,-9970.04681827,0.00023,2]
[356390931,1742383837692,-3061.65590643,0.00023,2]
[356390932,1742383837735,-5863.8538,0.00023,2]
[356390962,1742383842835,-151.22781866,0.00022954,2]
[356390963,1742383842845,-1866.67218133,0.00023,2]
[356390964,1742383842858,-1996.21582003,0.00023,2]
[356390965,1742383842871,-3449.12732104,0.00023,2]
[356390966,1742383842881,-323.65,0.000232,5]
[356390967,1742383842890,-150.00000001,0.00023485,2]
[356390968,1742383842901,-1715.2791675,0.00023585,2]
[356390969,1742383842912,-2930.5915959,0.00023585,2]
[356390970,1742383842921,-1829.06666012,0.000239,3]
[356390971,1742383842930,-150.9507973,0.00024,2]
[356390972,1742383842939,-417.89091067,0.0002429,2]
[356390974,1742383842948,-833.92477148,0.00024313,2]
[356390975,1742383842957,-3000.0,0.0002449,2]
[356390976,1742383842966,-327.78131656,0.00024573,2]
[356390977,1742383842975,-500.0,0.00024573,2]
[356390978,1742383842985,-275.26634027,0.00024573,2]
[356390979,1742383842994,-500.0,0.00024573,2]
[356390980,1742383843003,-500.0,0.00024573,2]
[356390981,1742383843012,-500.0,0.00024573,2]
[356390982,1742383843022,-1620.56310227,0.00024573,2]
[356390983,1742383843032,-465.93757744,0.00024589,2]
[356390998,1742383845826,-34.06242256,0.00024589,2]
[356390999,1742383845835,-1000.0,0.00024589,7]
[356391000,1742383845845,-1005.0,0.00024589,2]
[356391001,1742383845855,-467.66089122,0.00024589,2]
[356391002,1742383845866,-411.24065029,0.00024589,2]
[356391003,1742383845875,-27741.75046842,0.0002459,2]
[356391036,1742385032433,-815.57405646,0.00024,3]
[356391037,1742385032443,-417.89091067,0.00024145,2]
[356391038,1742385032452,-833.92477148,0.0002422,2]
[356391039,1742385032463,-154.95625445,0.00024441,2]
[356391040,1742385032472,-1417.99271453,0.00024441,2]
[356391041,1742385032482,-500.0,0.00024473,2]
[356391042,1742385032491,-500.0,0.00024473,2]
[356391043,1742385032501,-500.0,0.00024473,2]
[356391044,1742385032511,-500.0,0.00024473,2]
[356391045,1742385032520,-500.0,0.00024473,2]
[356391046,1742385032530,-500.0,0.00024473,2]
[356391047,1742385032539,-545.0727888,0.00024473,2]
[356391048,1742385032549,-500.0,0.00024473,2]
[356391049,1742385032559,-500.0,0.00024473,2]
[356391050,1742385032569,-234.69924893,0.00024473,2]
[356391051,1742385032581,-265.30075107,0.00024473,2]
[356391052,1742385032591,-159.24,0.00024473,2]
[356391053,1742385032600,-54.67407793,0.0002448,120]
[356391070,1742385037888,-1563.96716672,0.0002448,120]
[356391073,1742385037899,-20452.29739795,0.0002448,120]
[356391075,1742385037908,-615.23107906,0.00024489,2]
[356391076,1742385037918,-194.84088061,0.00024489,2]
[356391078,1742385037927,-437.47871408,0.00024489,2]
[356391080,1742385037936,-3000.0,0.0002449,2]
[356391082,1742385037946,-21214.0081333,0.0002449,2]
[356391084,1742385037958,-1932.6297342,0.0002449,2]
[356391087,1742385037970,-1680.26,0.0002449,2]
[356391137,1742385040149,-83895.4569904,0.0002449,2]
[356391180,1742385043035,-832.6942373,0.0002449,2]
[356391185,1742385046133,-500.0,0.00024489,2]
[356391186,1742385046143,-53759.52812785,0.0002449,2]
[356391190,1742385916003,300.0,0.0001,2]
[356391289,1742386238235,-189.40095811,0.0002,2]
[356391290,1742386238249,-779.00190105,0.0002347,2]
[356391291,1742386238265,-300.0,0.00023472,2]
[356391292,1742386238277,-24900.0,0.00023473,2]
[356391293,1742386238287,-500.0,0.000239,2]
[356391294,1742386238297,-625.0,0.000239,2]
[356391295,1742386238306,-500.0,0.000241,2]
[356391301,1742386238316,-500.0,0.000241,2]
[356391302,1742386238569,-500.79174825,0.000241,2]
[356391303,1742386238581,-169.04019944,0.000241,2]
[356391304,1742386238591,-500.0,0.0002412,2]
[356391305,1742386238607,-163.55583177,0.0002412,2]
[356391306,1742386238617,-4687.9604015,0.0002412,2]
[356391307,1742386238627,-417.89091067,0.00024132,2]
[356391308,1742386238638,-833.92477148,0.00024132,2]
[356391309,1742386238649,-370.99246978,0.00024389,2]
[356391310,1742386238660,-500.0,0.00024389,2]
[356391311,1742386238669,-500.0,0.00024389,2]
[356391312,1742386238680,-500.0,0.00024389,2]
[356391313,1742386238691,-525.0,0.00024389,2]
[356391314,1742386238702,-3000.0,0.0002439,2]
[356391315,1742386238712,-500.0,0.00024473,2]
[356391316,1742386238722,-465.93757744,0.00024489,2]
[356391317,1742386238732,-68399.44601633,0.000245,2]
[356391318,1742386238742,-850.0,0.0002456,14]
[356391319,1742386238752,-187.0907111,0.000246,2]
[356391320,1742386238762,-187.0907111,0.000246,2]
[356391321,1742386238772,-164.5603603,0.000246,2]
[356391322,1742386238783,-500.0,0.00024673,2]
[356391323,1742386238792,-206.84569796,0.00024689,2]
[356391324,1742386238802,-500.0,0.00024763,2]
[356391325,1742386238814,-154.95625445,0.00024789,2]
[356391326,1742386238824,-150.0,0.000248,30]
[356391327,1742386238835,-500.0,0.00024863,2]
[356391328,1742386238845,-471.93897924,0.00024873,2]
[356391329,1742386238854,-260.06457169,0.00024873,2]
[356391330,1742386238865,-159.04905023,0.00024873,2]
[356391331,1742386238876,-155.03686214,0.00024873,2]
[356391332,1742386238886,-474.95519472,0.00024873,2]
[356391333,1742386238897,-500.0,0.00024873,2]
[356391334,1742386238907,-500.0,0.00024873,2]
[356391335,1742386238916,-273.0649376,0.00024873,2]
[356391336,1742386238926,-500.0,0.00024873,2]
[356391337,1742386238936,-500.52982772,0.00024873,2]
[356391338,1742386238945,-500.0,0.00024873,2]
[356391339,1742386238955,-500.0,0.00024873,2]
[356391340,1742386238965,-500.0,0.00024873,2]
[356391341,1742386238975,-500.0,0.00024873,2]
[356391342,1742386238985,-383.06858051,0.00024873,2]
[356391343,1742386238995,-500.0,0.00024873,2]
[356391344,1742386239004,-500.0,0.00024873,2]
[356391345,1742386239014,-500.0,0.0002488,2]
[356391346,1742386239023,-8009.70976565,0.0002488,2]
[356391347,1742386239033,-500.0,0.00024889,2]
[356391348,1742386239043,-500.0,0.00024889,2]
[356391349,1742386239052,-500.0,0.00024889,2]
[356391350,1742386239062,-496.89246295,0.00024889,2]
[356391351,1742386239071,-151.0,0.0002489,7]
[356391352,1742386239081,-20825.2453907,0.0002489,2]
[356391353,1742386239091,-1263.44543,0.0002489,2]
[356391354,1742386239101,-1263.44543,0.0002489,2]